bitfinex/quotes_BTCUSD_20250326
["timestamp","ask_amount","ask_price","bid_price","bid_amount"]
[1743020756607,0.30390998,87348.0,87346.0,0.02237965]
[1743020757036,0.30390898,87348.0,87346.0,0.01737965]
[1743020757452,0.07493998,87348.0,87346.0,0.24635265]
[1743020758590,0.01793598,87348.0,87347.0,0.228971]
[1743020758806,0.01793598,87348.0,87347.0,0.33485985]
[1743020761626,0.01793598,87348.0,87347.0,0.49741749]
[1743020761827,0.0001695,87354.0,87353.0,0.33744385]
[1743020763328,0.0001695,87354.0,87353.0,0.33844385]
[1743020766206,0.01810306,87354.0,87353.0,0.33840385]
[1743020767269,0.01810306,87354.0,87353.0,0.45266149]
[1743020767640,0.0001695,87354.0,87353.0,0.45266149]
[1743020768443,0.01793192,87366.0,87365.0,0.24037]
[1743020768669,0.011441,87399.0,87377.0,0.33727785]
[1743020769034,9.077e-05,87378.0,87377.0,0.33727785]
[1743020769242,0.01801819,87378.0,87377.0,0.56116198]
[1743020769441,4e-05,87401.0,87393.0,0.33723385]
[1743020769639,0.00022017,87394.0,87393.0,0.34880407]
[1743020769871,0.00022017,87394.0,87393.0,0.64880407]
[1743020770833,0.22435683,87403.0,87402.0,0.25480885]
[1743020770988,0.0001694,87403.0,87402.0,0.25480885]
[1743020773242,0.0001694,87403.0,87402.0,0.34146873]
[1743020773842,0.0001694,87403.0,87402.0,0.25480885]
[1743020774419,0.0001694,87403.0,87402.0,0.25580885]
[1743020775513,0.0101694,87403.0,87402.0,0.25580885]
[1743020776229,0.0101694,87403.0,87402.0,0.38700885]
[1743020778130,0.0101694,87403.0,87402.0,0.25580885]
[1743020778330,0.0101694,87403.0,87402.0,0.38696885]
[1743020779682,0.0101694,87403.0,87402.0,0.47372074]
[1743020780005,0.0101694,87403.0,87402.0,0.38696885]
[1743020783627,0.0101694,87403.0,87402.0,0.25580885]
[1743020784881,0.0101694,87403.0,87402.0,0.25480885]
[1743020785088,0.0101694,87403.0,87402.0,0.25680885]
[1743020786292,0.02809226,87403.0,87402.0,0.25680885]
[1743020786853,0.26835826,87403.0,87402.0,0.002]
[1743020787059,0.02809226,87403.0,87402.0,0.002]
[1743020787263,0.02809226,87403.0,87402.0,0.230827]
[1743020788319,0.02309226,87403.0,87402.0,0.002]
[1743020788854,0.240268,87402.0,87401.0,0.0003388]
[1743020789417,0.30528637,87403.0,87401.0,0.0003388]
[1743020789823,0.02134208,87402.0,87401.0,0.2291678]
[1743020790228,0.02134208,87402.0,87401.0,0.0013388]
[1743020790409,0.02134208,87402.0,87401.0,0.2301688]
[1743020790592,0.02134208,87402.0,87401.0,0.2291688]
[1743020790989,0.02134208,87402.0,87401.0,0.0003388]
[1743020791220,0.25016908,87402.0,87401.0,0.0003388]
[1743020791413,0.02134208,87402.0,87401.0,0.0003388]
[1743020791616,0.25016908,87402.0,87401.0,0.0003388]
[1743020791822,0.02134208,87402.0,87401.0,0.0003388]
[1743020792325,0.26161008,87402.0,87401.0,0.0013388]
[1743020792524,0.25016908,87402.0,87401.0,0.0013388]
[1743020792728,0.02134208,87402.0,87401.0,0.0013388]
[1743020793155,0.02134208,87402.0,87401.0,0.0003388]
[1743020793353,0.25016908,87402.0,87401.0,0.0003388]
[1743020793554,0.25016908,87402.0,87401.0,0.0013388]
[1743020793555,0.07477664,87402.0,87401.0,0.0013388]
[1743020794776,0.30360364,87402.0,87401.0,0.0013388]
[1743020794917,0.07477664,87402.0,87401.0,0.2301688]
[1743020796543,0.02134208,87402.0,87401.0,0.2416098]
[1743020797447,0.02134208,87402.0,87401.0,0.0013388]
[1743020797870,0.25016908,87402.0,87401.0,0.0013388]
[1743020798078,0.02134208,87402.0,87401.0,0.0013388]
[1743020798281,0.02134208,87402.0,87401.0,0.2301688]
[1743020798941,0.02134208,87402.0,87401.0,0.0013388]
[1743020799148,0.02134208,87402.0,87401.0,0.2301688]
[1743020799693,0.02134208,87402.0,87401.0,0.2416098]
[1743020800249,0.02134208,87402.0,87401.0,0.25615065]
[1743020800464,0.02134208,87402.0,87401.0,0.35353893]
[1743020800870,0.0392664,87402.0,87401.0,0.35353893]
[1743020801648,0.0392664,87402.0,87401.0,0.25615065]
[1743020802885,0.02134208,87402.0,87401.0,0.25615065]
[1743020805861,0.02651148,87402.0,87401.0,0.25615065]
[1743020807221,0.04443448,87402.0,87401.0,0.25615065]
[1743020807748,0.04443448,87402.0,87401.0,0.45340829]
[1743020807976,0.04443448,87402.0,87401.0,0.56766593]
[1743020809035,0.0230924,87402.0,87401.0,0.56766593]
[1743020809396,0.0230924,87402.0,87401.0,0.45340829]
[1743020811018,0.000169,87422.0,87415.0,0.011439]
[1743020811191,0.000169,87422.0,87421.0,0.25475585]
[1743020811423,0.00030206,87422.0,87421.0,0.36901349]
[1743020811656,0.00030206,87422.0,87421.0,0.48327113]
[1743020813129,6e-08,87423.0,87422.0,0.25475385]
[1743020813351,6e-08,87423.0,87422.0,0.36901149]
[1743020814750,0.01791816,87423.0,87422.0,0.36901149]
[1743020814920,0.01791816,87423.0,87422.0,0.4113694]
[1743020815815,0.01791816,87423.0,87422.0,0.4143694]
[1743020816221,0.01791816,87423.0,87422.0,0.37201149]
[1743020818746,0.01791816,87423.0,87422.0,0.39547093]
[1743020819942,0.00016946,87423.0,87422.0,0.39547093]
[1743020820920,0.00016946,87423.0,87422.0,0.26667244]
[1743020821420,0.00016946,87423.0,87422.0,0.39771244]
[1743020821572,0.00016946,87423.0,87422.0,0.52651093]
[1743020822218,0.00016946,87423.0,87422.0,0.41225329]
[1743020823056,4.6e-07,87423.0,87422.0,0.41225329]
[1743020823972,4.6e-07,87423.0,87422.0,0.52651093]
[1743020824493,3.6e-07,87439.0,87438.0,0.011436]
[1743020824699,3.6e-07,87439.0,87438.0,0.38574985]
[1743020824910,3.6e-07,87439.0,87438.0,0.47350334]
[1743020825087,3.6e-07,87439.0,87438.0,0.38574985]
[1743020825643,3.6e-07,87439.0,87438.0,0.38284985]
[1743020825852,3.6e-07,87439.0,87438.0,0.39400441]
[1743020826245,3.6e-07,87439.0,87438.0,0.26296441]
[1743020826488,3.6e-07,87439.0,87438.0,0.85708441]
[1743020826688,3.6e-07,87439.0,87438.0,0.98812441]
[1743020826887,3.6e-07,87439.0,87438.0,0.98912441]
[1743020827391,0.01791517,87439.0,87438.0,1.21763969]
[1743020828146,0.01791517,87439.0,87438.0,1.32128059]
[1743020829179,3.6e-07,87439.0,87438.0,1.32128059]
[1743020829353,3.6e-07,87439.0,87438.0,1.20702295]
[1743020830391,3.6e-07,87439.0,87438.0,1.62352295]
[1743020830594,6e-08,87442.0,87441.0,0.25470185]
[1743020830795,6e-08,87442.0,87441.0,0.36895949]
[1743020830996,6e-08,87442.0,87441.0,0.48321713]
[1743020832768,6e-08,87442.0,87441.0,0.61421713]
[1743020833492,6e-08,87442.0,87441.0,0.61821713]
[1743020833673,6e-08,87442.0,87441.0,0.61421713]
[1743020834192,6e-08,87442.0,87441.0,0.62021713]
[1743020834403,6e-08,87442.0,87441.0,1.03671713]
[1743020834610,6e-08,87442.0,87441.0,0.79145949]
[1743020834748,6e-08,87442.0,87441.0,0.793661]
[1743020835407,6e-08,87442.0,87441.0,0.77691864]
[1743020835613,6e-08,87442.0,87441.0,0.92241949]
[1743020836394,6e-08,87442.0,87441.0,0.91641949]
[1743020836628,6e-08,87442.0,87441.0,0.92241949]
[1743020845861,6e-08,87442.0,87441.0,0.92275809]
[1743020846263,6e-08,87442.0,87441.0,0.91675809]
[1743020846662,6e-08,87442.0,87441.0,0.92175809]
[1743020849113,8e-08,87446.0,87445.0,0.24015]
[1743020849288,8e-08,87446.0,87445.0,0.36894849]
[1743020849489,0.0001695,87466.0,87461.0,0.240106]
[1743020849661,0.00113306,87462.0,87461.0,0.38556685]
[1743020849885,0.0130824,87484.0,87477.0,0.011431]
[1743020850085,0.0130824,87484.0,87483.0,0.24315585]
[1743020850291,0.0130824,87484.0,87483.0,0.26588334]
[1743020850491,0.0130824,87484.0,87483.0,0.25445334]
[1743020850738,0.0130824,87484.0,87483.0,0.02583834]
[1743020851126,0.0130824,87484.0,87483.0,0.25445334]
[1743020851320,0.0170824,87484.0,87483.0,0.46331935]
[1743020851536,0.0130824,87484.0,87483.0,0.46331935]
[1743020851786,0.03448355,87484.0,87483.0,0.46331935]
[1743020852472,0.03448355,87484.0,87483.0,0.38872042]
[1743020852619,0.03448355,87484.0,87483.0,0.02272749]
[1743020852816,0.03448355,87484.0,87483.0,0.23991249]
[1743020853042,0.0130824,87484.0,87483.0,0.26588334]
[1743020854466,0.0130824,87484.0,87483.0,0.39680334]
[1743020854671,0.0130824,87484.0,87483.0,0.6250288]
[1743020855097,0.0130824,87484.0,87483.0,0.4941088]
[1743020855302,0.0130824,87484.0,87483.0,0.6334433]
[1743020856500,0.0130824,87484.0,87483.0,0.51947548]
[1743020856902,0.0130824,87484.0,87483.0,0.38955548]
[1743020857102,0.0130824,87484.0,87483.0,0.52043548]
[1743020857306,0.0130824,87484.0,87483.0,0.51943548]
[1743020857510,0.0130824,87484.0,87483.0,0.52043548]
[1743020857706,0.0130824,87484.0,87483.0,0.40617784]
[1743020858544,0.0132517,87484.0,87483.0,0.40617784]
[1743020860709,0.0132517,87484.0,87483.0,0.70617784]
[1743020861083,0.01790502,87489.0,87483.0,0.70617784]
[1743020861084,7.2e-07,87489.0,87488.0,0.240032]
[1743020861296,0.00044408,87489.0,87488.0,0.36883049]
[1743020861466,0.00044336,87489.0,87488.0,0.48308813]
[1743020861791,0.00044336,87489.0,87488.0,0.36883049]
[1743020862010,0.00044336,87489.0,87488.0,0.96255049]
[1743020862627,0.00044336,87489.0,87488.0,0.833752]
[1743020862840,0.00044336,87489.0,87488.0,0.822322]
[1743020863045,0.00044336,87489.0,87488.0,0.833752]
[1743020863623,0.01044336,87489.0,87488.0,0.84829285]
[1743020864039,0.01044336,87489.0,87488.0,0.60826085]
[1743020864273,0.01044336,87489.0,87488.0,0.822322]
[1743020864497,0.01044336,87489.0,87488.0,0.82083291]
[1743020865084,0.01044336,87489.0,87488.0,0.83226291]
[1743020865233,0.01044336,87489.0,87488.0,0.83726291]
[1743020865447,0.01044336,87489.0,87488.0,0.83226291]
[1743020865641,0.03177716,87489.0,87488.0,0.83226291]
[1743020865854,0.03177716,87489.0,87488.0,0.83426291]
[1743020866663,0.03177716,87489.0,87488.0,0.94852055]
[1743020866863,0.01044336,87489.0,87488.0,0.83426291]
[1743020867219,0.39292453,87489.0,87488.0,0.002]
[1743020867619,0.43932453,87489.0,87488.0,0.002]
[1743020867794,0.47347495,87489.0,87488.0,0.002]
[1743020868842,0.43564908,87489.0,87486.0,0.228605]
[1743020869278,0.20704708,87489.0,87486.0,0.228605]
[1743020869408,0.43564708,87489.0,87486.0,0.228605]
[1743020870038,0.43564708,87489.0,87487.0,0.228605]
[1743020870272,0.05549832,87488.0,87487.0,0.228604]
[1743020871356,0.05549832,87488.0,87486.0,0.228605]
[1743020872282,0.05549832,87488.0,87483.0,0.24004]
[1743020872283,0.37685167,87488.0,87485.0,0.22861]
[1743020873080,0.14824867,87488.0,87486.0,0.228607]
[1743020873278,0.05549832,87487.0,87486.0,0.228607]
[1743020873475,0.01143,87486.0,87472.0,0.24318485]
[1743020873716,0.27678041,87485.0,87480.0,0.228622]
[1743020873969,0.04817041,87485.0,87481.0,0.228618]
[1743020874090,0.27678141,87485.0,87480.0,0.228622]
[1743020874294,0.28411132,87484.0,87481.0,0.228619]
[1743020874495,0.228618,87482.0,87478.0,0.228628]
[1743020874791,0.05549832,87484.0,87483.0,0.24315585]
[1743020875256,0.05549832,87484.0,87479.0,0.240054]
[1743020875257,0.05549832,87484.0,87479.0,0.02597185]
[1743020875461,0.05549832,87484.0,87481.0,0.24315685]
[1743020875660,0.05549832,87484.0,87481.0,0.25458785]
[1743020875814,0.05549832,87484.0,87478.0,0.011431]
[1743020876031,0.28411132,87484.0,87480.0,0.228621]
[1743020876306,0.05549832,87484.0,87481.0,0.22862]
[1743020876447,0.28411232,87484.0,87481.0,0.22862]
[1743020876898,0.05549832,87484.0,87481.0,0.001]
[1743020877100,0.011431,87481.0,87472.0,0.011432]
[1743020877299,0.307424,87480.0,87474.0,0.011431]
[1743020877503,0.307424,87480.0,87475.0,0.228636]
[1743020877809,0.01790838,87479.0,87478.0,0.228628]
[1743020878159,0.01790838,87479.0,87478.0,0.25459985]
[1743020879157,0.03925628,87479.0,87478.0,0.25459985]
[1743020880625,0.03925628,87479.0,87478.0,0.25659985]
[1743020881082,0.03925628,87479.0,87478.0,0.25459985]
[1743020881472,0.03925628,87479.0,87478.0,0.25659985]
[1743020881901,2.8e-07,87479.0,87478.0,0.78276468]
[1743020882095,2.8e-07,87479.0,87478.0,0.86236468]
[1743020882977,0.02,87488.0,87487.0,0.240035]
[1743020883186,0.02,87488.0,87487.0,0.25457585]
[1743020884752,0.01143,87484.0,87478.0,0.000339]
[1743020884969,0.05966574,87484.0,87478.0,0.228967]
[1743020885178,0.228622,87481.0,87478.0,0.228967]
[1743020885390,0.228625,87480.0,87478.0,0.000339]
[1743020885784,0.017907,87481.0,87480.0,0.240054]
[1743020885967,0.017907,87481.0,87480.0,0.25459485]
[1743020886162,0.017907,87481.0,87480.0,0.01454085]
[1743020886372,0.017907,87481.0,87480.0,0.228623]
[1743020886601,0.0745856,87481.0,87478.0,0.228967]
[1743020886861,0.05217221,87481.0,87479.0,0.011431]
[1743020887382,0.05217221,87481.0,87478.0,0.229967]
[1743020887586,0.05217221,87481.0,87478.0,0.001339]
[1743020887861,0.08259895,87480.0,87478.0,0.001339]
[1743020888067,0.03426521,87480.0,87479.0,0.25459785]
[1743020891134,0.03426521,87480.0,87479.0,0.228626]
[1743020891334,0.03426521,87480.0,87479.0,0.240057]
[1743020891952,0.03426521,87480.0,87479.0,0.25459785]
[1743020892614,0.017907,87481.0,87480.0,0.25459485]
[1743020892756,0.228621,87481.0,87479.0,0.228625]
[1743020892959,0.01143,87482.0,87478.0,0.000339]
[1743020893163,0.228618,87483.0,87478.0,0.000339]
[1743020893465,0.228618,87483.0,87478.0,0.228967]
[1743020893665,0.228622,87481.0,87478.0,0.228967]
[1743020894095,0.228622,87481.0,87479.0,0.228624]
[1743020894301,0.228624,87480.0,87478.0,0.228967]
[1743020894880,0.228622,87481.0,87479.0,0.228625]
[1743020895016,0.228622,87481.0,87478.0,0.228967]
[1743020895604,0.228619,87482.0,87478.0,0.240398]
[1743020895803,0.228623,87480.0,87478.0,0.228967]
[1743020896013,0.228621,87481.0,87478.0,0.228967]
[1743020896868,0.228621,87481.0,87479.0,0.228625]
[1743020897569,0.228621,87481.0,87478.0,0.228967]
[1743020898202,0.228621,87481.0,87478.0,0.000339]
[1743020898203,0.228625,87480.0,87478.0,0.000339]
[1743020898952,0.228626,87479.0,87478.0,0.000339]
[1743020899353,0.2402175,87483.0,87478.0,0.000339]
[1743020899556,0.228619,87482.0,87478.0,0.228965]
[1743020900166,0.228622,87481.0,87478.0,0.228967]
[1743020900378,0.228622,87481.0,87478.0,0.228966]
[1743020900581,0.2287875,87483.0,87479.0,0.228625]
[1743020901008,0.2287875,87483.0,87480.0,0.228623]
[1743020901335,0.05572684,87482.0,87479.0,0.240056]
[1743020901514,0.28434684,87482.0,87479.0,0.228625]
[1743020901669,0.228622,87481.0,87479.0,0.228625]
[1743020901972,0.28434684,87482.0,87479.0,0.228625]
[1743020902176,0.05572684,87480.0,87478.0,0.240393]
[1743020902395,0.05572684,87480.0,87479.0,0.228626]
[1743020903110,0.05572684,87480.0,87479.0,0.25459785]
[1743020906111,0.05572684,87480.0,87479.0,0.23459785]
[1743020906829,0.05572684,87480.0,87479.0,0.208626]
[1743020907194,0.05572684,87480.0,87479.0,0.220057]
[1743020907384,0.05572684,87480.0,87479.0,0.208626]
[1743020907590,0.05572684,87480.0,87478.0,0.000339]
[1743020907770,0.05572684,87480.0,87478.0,0.228965]
[1743020907967,0.05572684,87480.0,87479.0,0.240057]
[1743020908165,0.05572684,87480.0,87479.0,0.228626]
[1743020908388,0.05572684,87480.0,87479.0,0.240057]
[1743020909281,0.05572684,87480.0,87478.0,0.228965]
[1743020909456,0.05572684,87480.0,87478.0,0.240396]
[1743020909953,0.34415025,87479.0,87478.0,0.000339]
[1743020910097,0.18319325,87479.0,87478.0,0.000339]
[1743020910424,0.41181925,87479.0,87478.0,0.000339]
[1743020910627,0.18319325,87479.0,87478.0,0.000339]
[1743020910820,0.41181925,87479.0,87478.0,0.000339]
[1743020911001,0.19462425,87479.0,87478.0,0.000339]
[1743020911214,0.54395176,87479.0,87478.0,0.000339]
[1743020911413,0.54163388,87479.0,87478.0,0.000339]
[1743020912176,0.84163388,87479.0,87478.0,0.000339]
[1743020914201,0.84163388,87479.0,87478.0,0.000139]
[1743020915585,0.80734044,87479.0,87478.0,0.000139]
[1743020915784,0.82525329,87479.0,87478.0,0.000139]
[1743020916127,0.228697,87452.0,87448.0,0.011435]
[1743020916334,0.011435,87448.0,87446.0,0.01454085]
[1743020916551,0.240144,87447.0,87446.0,0.01454085]
[1743020916756,0.240131,87452.0,87448.0,0.228707]
[1743020917035,0.228701,87451.0,87447.0,0.228709]
[1743020917235,0.228704,87450.0,87446.0,0.228712]
[1743020917474,0.228704,87449.0,87448.0,0.002]
[1743020917693,0.2501374,87450.0,87448.0,0.002]
[1743020917851,0.240139,87449.0,87448.0,0.002]
[1743020918194,0.0214334,87450.0,87448.0,0.230707]
[1743020918752,0.228704,87449.0,87448.0,0.002]
[1743020919351,0.228709,87448.0,87443.0,0.01156906]
[1743020919529,0.228709,87448.0,87446.0,0.002]
[1743020919734,0.2501374,87449.0,87446.0,0.228712]
[1743020920028,0.08460117,87448.0,87444.0,0.011435]
[1743020920214,0.31330817,87448.0,87444.0,0.228716]
[1743020920549,0.228712,87447.0,87443.0,0.00013306]
[1743020920782,0.240147,87447.0,87443.0,0.00013306]
[1743020920985,0.240147,87447.0,87446.0,0.001]
[1743020921247,0.32687097,87447.0,87446.0,0.001]
[1743020921449,0.31543597,87447.0,87446.0,0.001]
[1743020921782,0.08672397,87447.0,87446.0,0.001]
[1743020922002,0.0214334,87447.0,87446.0,0.229712]
[1743020922521,0.0214334,87447.0,87445.0,0.228714]
[1743020923305,0.0214334,87446.0,87444.0,0.241486]
[1743020923508,0.0214334,87446.0,87445.0,0.228715]
[1743020923827,0.0214334,87446.0,87444.0,0.241486]
[1743020924152,0.0214334,87446.0,87444.0,0.230056]
[1743020924153,0.07389134,87446.0,87444.0,0.230056]
[1743020924657,0.0214334,87446.0,87444.0,0.229056]
[1743020924965,0.0214334,87445.0,87444.0,0.229056]
[1743020925717,0.0214334,87445.0,87444.0,0.000339]
[1743020925926,0.228712,87447.0,87444.0,0.000339]
[1743020926102,0.24015,87445.0,87444.0,0.000339]
[1743020927337,0.25806509,87445.0,87444.0,0.000339]
[1743020929169,0.01791509,87445.0,87444.0,0.000339]
[1743020929388,0.24663009,87445.0,87444.0,0.000339]
[1743020929625,0.24663009,87445.0,87444.0,0.002339]
[1743020930458,0.3456227,87445.0,87444.0,0.002339]
[1743020930660,0.3570577,87445.0,87444.0,0.002339]
[1743020931687,0.37842328,87445.0,87444.0,0.002339]
[1743020932719,0.36050819,87445.0,87444.0,0.002339]
[1743020932922,0.36050819,87445.0,87444.0,0.000339]
[1743020933304,0.36050819,87445.0,87444.0,0.001339]
[1743020935135,0.44160819,87445.0,87444.0,0.001339]
[1743020936179,0.47581037,87445.0,87444.0,0.000339]
[1743020936742,0.52643181,87445.0,87444.0,0.000339]
[1743020937265,0.54434892,87445.0,87444.0,0.000339]
[1743020937462,0.07348487,87445.0,87444.0,0.229056]
[1743020937667,0.07348487,87445.0,87444.0,0.000339]
[1743020938343,0.30219987,87445.0,87444.0,0.000339]
[1743020938657,0.07348487,87445.0,87444.0,0.000339]
[1743020938814,0.26799769,87445.0,87444.0,0.000339]
[1743020939016,0.34855004,87445.0,87444.0,0.000339]
[1743020939629,0.11983504,87445.0,87444.0,0.229056]
[1743020939965,0.11983504,87445.0,87444.0,0.000339]
[1743020940099,0.07348487,87445.0,87444.0,0.000339]
[1743020940623,0.07348487,87445.0,87444.0,0.229056]
[1743020942845,0.05556776,87445.0,87444.0,0.229056]
[1743020945639,0.05306776,87445.0,87444.0,0.229056]
[1743020945838,0.07098326,87445.0,87444.0,0.229056]
[1743020946441,0.08623855,87445.0,87444.0,0.229056]
[1743020950383,0.07098326,87445.0,87444.0,0.229056]
[1743020951926,0.03678108,87445.0,87444.0,0.229056]
[1743020952817,0.01886558,87445.0,87444.0,0.229056]
[1743020957195,0.03678117,87445.0,87444.0,0.229056]
[1743020958437,0.04678117,87445.0,87444.0,0.240491]
[1743020958591,0.04678117,87445.0,87444.0,0.25503185]
[1743020959812,0.0811169,87445.0,87444.0,0.25503185]
[1743020962440,0.04678117,87445.0,87444.0,0.25503185]
[1743020962838,0.02886558,87445.0,87444.0,0.25503185]
[1743020969498,0.02903518,87445.0,87444.0,0.25503185]
[1743020975801,0.0101696,87445.0,87444.0,0.25503185]
[1743020977904,0.0101696,87445.0,87444.0,0.240491]
[1743020978120,0.03161001,87445.0,87444.0,0.229056]
[1743020978271,0.09299464,87445.0,87444.0,0.229056]
[1743020978481,0.09299464,87445.0,87444.0,0.000339]
[1743020979042,0.07155423,87445.0,87444.0,0.229056]
[1743020979246,0.0568696,87445.0,87444.0,0.229056]
[1743020979692,0.10749104,87445.0,87444.0,0.002339]
[1743020979897,0.2855846,87445.0,87444.0,0.002339]
[1743020982622,0.2970196,87445.0,87444.0,0.002339]
[1743020986324,0.34764104,87445.0,87444.0,0.002339]
[1743020986853,0.46189868,87445.0,87444.0,0.002339]
[1743020987488,0.47981476,87445.0,87444.0,0.002339]
[1743020988871,0.56231476,87445.0,87444.0,0.002339]
[1743020989227,0.56231476,87445.0,87443.0,0.00013306]
[1743020989228,0.540152,87444.0,87443.0,6e-08]
[1743020989462,0.540152,87444.0,87441.0,0.0003386]
[1743020989463,0.673859,87442.0,87441.0,6.6e-07]
[1743020989808,0.66891,87423.0,87422.0,0.0003388]
[1743020990104,0.85165037,87423.0,87422.0,0.0003388]
[1743020990539,0.86957199,87423.0,87422.0,0.0003388]
[1743020990736,0.98382963,87423.0,87422.0,0.0003388]
[1743020992267,0.96590801,87423.0,87422.0,0.0003388]
[1743020992853,0.97090801,87423.0,87422.0,0.0003388]
[1743020994517,0.97290801,87423.0,87422.0,0.0003388]
[1743020995582,1.39020801,87423.0,87422.0,0.0003388]
[1743020995926,1.27595037,87423.0,87422.0,0.0003388]
[1743020997010,1.16319302,87423.0,87422.0,0.0003388]
[1743020997187,1.29387302,87423.0,87422.0,0.0003388]
[1743021001445,1.07569302,87423.0,87422.0,0.0003388]
[1743021001656,0.72949302,87423.0,87422.0,0.0003388]
[1743021001779,0.70013237,87423.0,87422.0,0.0003388]
[1743021001984,0.47136037,87423.0,87422.0,0.0003388]
[1743021002181,0.4193,87423.0,87422.0,0.3212518]
[1743021002415,0.002,87423.0,87422.0,0.3212518]
[1743021003764,0.002,87423.0,87422.0,0.3222518]
[1743021004327,0.011437,87435.0,87427.0,0.22866407]
[1743021004513,0.05150434,87434.0,87430.0,0.228754]
[1743021004716,0.05150434,87434.0,87430.0,0.23921437]
[1743021004983,0.240186,87433.0,87426.0,0.240201]
[1743021005189,0.240186,87433.0,87426.0,0.228762]
[1743021005190,0.228756,87430.0,87426.0,0.228762]
[1743021005499,0.228757,87429.0,87426.0,0.227762]
[1743021006042,0.240189,87431.0,87426.0,0.011438]
[1743021006243,0.28748852,87430.0,87427.0,0.22876]
[1743021006487,0.30540781,87430.0,87427.0,0.23999164]
[1743021006739,0.30540781,87430.0,87427.0,0.22876]
[1743021006959,0.30540781,87430.0,87423.0,0.011438]
[1743021006960,0.228772,87423.0,87422.0,0.0003388]
[1743021007150,0.29227037,87423.0,87422.0,0.0003388]
[1743021008321,0.01894137,87429.0,87422.0,0.0003388]
[1743021008558,0.228772,87423.0,87422.0,0.0003388]
[1743021009010,0.24021,87423.0,87422.0,0.0003388]
[1743021009463,0.24021,87423.0,87422.0,0.0013388]
[1743021009665,0.34089634,87423.0,87422.0,0.0013388]
[1743021010168,0.64089634,87423.0,87422.0,0.0013388]
[1743021010402,0.71909634,87423.0,87422.0,0.0013388]
[1743021011332,1.14139634,87423.0,87422.0,0.0013388]
[1743021011546,1.18899634,87423.0,87422.0,0.0013388]
[1743021011784,1.18899634,87423.0,87422.0,0.0003388]
[1743021012076,1.19099634,87423.0,87422.0,0.0003388]
[1743021012304,1.19299634,87423.0,87422.0,0.0003388]
[1743021012536,0.946072,87423.0,87422.0,0.0003388]
[1743021012741,0.02935629,87430.0,87422.0,0.0003388]
[1743021012742,0.011436,87436.0,87422.0,0.0003388]
[1743021012944,0.004,87423.0,87422.0,0.2291138]
[1743021013305,0.004,87423.0,87422.0,0.0003388]
[1743021013829,0.004,87423.0,87422.0,0.2291138]
[1743021014392,0.3000443,87431.0,87422.0,0.2291138]
[1743021014614,0.05859962,87430.0,87422.0,0.2291138]
[1743021014812,0.28735462,87430.0,87422.0,0.2291138]
[1743021015037,0.28735462,87430.0,87423.0,0.22877]
[1743021015236,0.28735462,87430.0,87424.0,0.228769]
[1743021015441,0.05859962,87430.0,87425.0,0.225767]
[1743021015644,0.0040443,87431.0,87424.0,0.228769]
[1743021015991,0.0179215,87429.0,87424.0,0.228769]
[1743021017717,0.00566121,87428.0,87424.0,0.228769]
[1743021017918,0.00566121,87428.0,87422.0,0.0003388]
[1743021018201,0.00566121,87428.0,87423.0,0.228772]
[1743021018562,0.00566121,87428.0,87422.0,0.0003388]
[1743021019337,0.228762,87427.0,87422.0,0.0003388]
[1743021019452,0.22877,87424.0,87422.0,0.0003388]
[1743021019676,0.62612788,87423.0,87422.0,0.0003388]
[1743021019920,0.62943803,87423.0,87422.0,0.0003388]
[1743021020126,0.74369567,87423.0,87422.0,0.0003388]
[1743021020772,0.62943803,87423.0,87422.0,0.0003388]
[1743021021777,1.04673803,87423.0,87422.0,0.0003388]
[1743021021955,1.04773803,87423.0,87422.0,0.0003388]
[1743021022346,1.20162672,87423.0,87422.0,0.0003388]
[1743021023161,1.20362672,87423.0,87422.0,0.0003388]
[1743021023575,1.31788436,87423.0,87422.0,0.0003388]
[1743021024582,1.20362672,87423.0,87422.0,0.0003388]
[1743021026123,1.22154988,87423.0,87422.0,0.0003388]
[1743021026728,1.26814988,87423.0,87422.0,0.0003388]
[1743021027176,1.29314988,87423.0,87422.0,8e-07]
[1743021028011,1.29214988,87423.0,87422.0,8e-07]
[1743021028160,1.40640752,87423.0,87422.0,8e-07]
[1743021028364,1.40940752,87423.0,87422.0,8e-07]
[1743021029187,1.40440752,87423.0,87422.0,8e-07]
[1743021029568,1.40940752,87423.0,87422.0,8e-07]
[1743021029906,1.41795829,87423.0,87422.0,8e-07]
[1743021030889,1.42295829,87423.0,87422.0,8e-07]
[1743021033327,1.40503513,87423.0,87422.0,8e-07]
[1743021036080,1.41957598,87423.0,87422.0,8e-07]
[1743021036453,1.41957598,87423.0,87399.0,4e-07]
[1743021036454,0.305,87400.0,87399.0,4e-07]
[1743021036632,1.093213,87400.0,87399.0,4e-07]
[1743021036833,1.09868582,87400.0,87399.0,4e-07]
[1743021037066,1.1100805,87400.0,87399.0,4e-07]
[1743021037651,1.13307376,87400.0,87399.0,4e-07]
[1743021037848,1.27365005,87400.0,87399.0,0.00013346]
[1743021038446,1.27865005,87400.0,87399.0,0.00013346]
[1743021038856,1.28165005,87400.0,87399.0,0.00013346]
[1743021039395,1.27865005,87400.0,87399.0,0.00013346]
[1743021039577,1.28365005,87400.0,87399.0,0.00013346]
[1743021042958,1.13507999,87400.0,87399.0,0.00013346]
[1743021043156,1.26575999,87400.0,87399.0,0.00013346]
[1743021045924,1.28369057,87400.0,87399.0,0.00013346]
[1743021052774,1.26575999,87400.0,87399.0,0.00013346]
[1743021054048,1.26592959,87400.0,87399.0,0.00013346]
[1743021055873,1.28386027,87400.0,87399.0,0.00013346]
[1743021057352,1.15318027,87400.0,87399.0,0.00013346]
[1743021057555,1.28382027,87400.0,87399.0,0.00013346]
[1743021059629,1.29382027,87400.0,87399.0,0.00013346]
[1743021060175,1.04892263,87400.0,87399.0,0.00013346]
[1743021060374,1.17956263,87400.0,87399.0,0.00013346]
[1743021061403,1.04392263,87400.0,87399.0,0.00013346]
[1743021061590,0.44887404,87400.0,87399.0,0.00013346]
[1743021062112,0.74887404,87400.0,87399.0,0.00013346]
[1743021062310,0.86313168,87400.0,87399.0,0.00013346]
[1743021062806,0.845201,87400.0,87399.0,0.00013346]
[1743021063695,0.850201,87400.0,87399.0,4.6e-07]
[1743021063905,0.545298,87391.0,87390.0,8.6e-07]
[1743021064129,0.62182888,87391.0,87390.0,8.6e-07]
[1743021064310,0.62713492,87391.0,87390.0,8.6e-07]
[1743021064892,1.04443492,87391.0,87390.0,8.6e-07]
[1743021065097,1.04743492,87391.0,87390.0,8.6e-07]
[1743021065336,1.05043492,87391.0,87390.0,8.6e-07]
[1743021066050,1.06836584,87391.0,87390.0,8.6e-07]
[1743021066627,0.540324,87382.0,87381.0,0.00014418]